[Event "Kragero Resort Chess A 2019"]
[Site "Kragero"]
[Date "2019.02.22"]
[Round "5.6"]
[White "Sgircea, Silvia-Raluca"]
[Black "Kjartansson, Gudmundur"]
[Result "0-1"]
[ECO "A15"]
[WhiteElo "2251"]
[BlackElo "2403"]
[Annotator "NA"]
[PlyCount "92"]
[EventDate "2019.02.20"]
[EventType "swiss"]
[EventCountry "NOR"]
[SourceTitle "playchess.com"]
[Source "ChessBase"]
[SourceQuality "1"]
[TimeControl "5400+30"]

1. Nf3 {[%emt 0:00:00]} d5 {[%emt 0:00:53]} 2. g3 {[%emt 0:02:38]} Nf6 {[%emt 0:01:29]} 3. Bg2 {[%emt 0:00:06]} g6 {[%emt 0:01:36]} 4. c4 {[%emt 0:07:33]} Bg7 {[%emt 0:01:33]} 5. O-O {[%emt 0:01:58]} O-O {[%emt 0:00:06]} 6. Qc2 {[%emt 0:03:55]} d4 {[%emt 0:04:56]} 7. d3 {[%emt 0:04:58]} Nc6 {[%emt 0:02:34]} 8. a3 {[%emt 0:13:44]} a5 {[%emt 0:00:23]} 9. b3 {[%emt 0:00:11]} e5 {[%emt 0:00:35]} 10. Nbd2 {[%emt 0:01:28]} Re8 {[%emt 0:01:22]} 11. Rb1 {[%emt 0:00:36]} Bf8 {[%emt 0:01:13]} 12. Bb2 {[%emt 0:05:43]} Bc5 {[%emt 0:14:01]} 13. Ne1 {[%emt 0:05:28]} Qd6 {[%emt 0:03:05]} 14. Qc1 {[%emt 0:03:22]} Bg4 {[%emt 0:06:08]} 15. f3 {[%emt 0:03:25]} Bd7 {[%emt 0:00:24]} 16. Ne4 {[%emt 0:00:09]} Nxe4 {[%emt 0:00:31]} 17. fxe4 {[%emt 0:00:05]} Ra6 {[%emt 0:06:36]} 18. Nc2 {[%emt 0:01:52]} Rb6 {[%emt 0:00:25]} 19. Ba1 {[%emt 0:00:23]} Kg7 {[%emt 0:01:41]} 20. Rf2 {[%emt 0:02:02]} f6 {[%emt 0:02:10]} 21. Qf1 {[%emt 0:03:01]} Rf8 {[%emt 0:02:51]} 22. Qc1 {[%emt 0:00:51]} Rf7 {[%emt 0:05:18]} 23. Bf3 {[%emt 0:02:26]} Qe7 {[%emt 0:08:05]} 24. Bg2 {[%emt 0:01:19]} Rf8 {[%emt 0:00:22]} 25. Kh1 {[%emt 0:02:56]} Rf7 {[%emt 0:02:10]} 26. Rf1 {[%emt 0:00:58]} h5 {[%emt 0:02:02]} 27. Rf2 {[%emt 0:02:23]} Rf8 {[%emt 0:00:37]} 28. Rf1 {[%emt 0:01:20]} Rh8 {[%emt 0:02:11]} 29. Bf3 {[%emt 0:01:41]} Be6 {[%emt 0:05:39]} 30. Rf2 {[%emt 0:02:00]} g5 {[%emt 0:03:03]} 31. Kg1 {[%emt 0:07:39]} h4 {[%emt 0:01:17]} 32. gxh4 {[%emt 0:00:27]} Rxh4 {[%emt 0:00:17]} 33. Rg2 {[%emt 0:01:14]} Kh8 {[%emt 0:01:35]} 34. Rf2 {[%emt 0:02:56]} Bd7 {[%emt 0:07:28]} 35. Bg2 {[%emt 0:01:08]} Kg7 {[%emt 0:00:52]} 36. Qf1 {[%emt 0:01:14]} Rh6 {[%emt 0:00:47]} 37. a4 {[%emt 0:02:46]} Nd8 {[%emt 0:01:07]} 38. Rf3 {[%emt 0:02:00]} Ne6 {[%emt 0:01:18]} 39. e3 {[%emt 0:03:05]} dxe3 {[%emt 0:00:47]} 40. Nxe3 {[%emt 0:00:02]} Bxe3+ {[%emt 0:02:45]} 41. Rxe3 {[%emt 0:00:02]} c5 {[%emt 0:00:21]} 42. Bc3 {[%emt 0:00:28]} Ra6 {[%emt 0:00:36]} 43. Rf3 {[%emt 0:01:37]} Ra8 {[%emt 0:00:22]} 44. Bh3 {[%emt 0:01:06]} Nf4 {[%emt 0:01:06]} 45. Bxd7 {[%emt 0:00:09]} Qxd7 {[%emt 0:00:04]} 46. Bd2 {[%emt 0:00:09]} Qg4+ {[%emt 0:00:28]} 0-1

[Event "Kragero Resort Chess A 2019"]
[Site "Kragero"]
[Date "2019.02.22"]
[Round "5.7"]
[White "Nordquelle, Daniel"]
[Black "Getz, Nicolai"]
[Result "1/2-1/2"]
[ECO "C50"]
[WhiteElo "2235"]
[BlackElo "2398"]
[Annotator "NA"]
[PlyCount "60"]
[EventDate "2019.02.20"]
[EventType "swiss"]
[EventCountry "NOR"]
[SourceTitle "playchess.com"]
[Source "ChessBase"]
[SourceQuality "1"]
[TimeControl "5400+30"]

1. e4 {[%emt 0:00:00]} e5 {[%emt 0:00:00]} 2. Nf3 {[%emt 0:00:00]} Nc6 {[%emt 0:00:08]} 3. Bc4 {[%emt 0:00:00]} Bc5 {[%emt 0:00:00]} 4. O-O {[%emt 0:00:00]} Nf6 {[%emt 0:00:00]} 5. d3 {[%emt 0:00:00]} d6 {[%emt 0:00:40]} 6. a4 {[%emt 0:00:15]} a6 {[%emt 0:01:22]} 7. c3 {[%emt 0:00:57]} Ba7 {[%emt 0:00:15]} 8. Re1 {[%emt 0:00:16]} h6 {[%emt 0:03:15]} 9. Nbd2 {[%emt 0:00:13]} O-O {[%emt 0:00:43]} 10. Nf1 {[%emt 0:00:36]} Be6 {[%emt 0:00:49]} 11. Bb3 {[%emt 0:00:29]} Re8 {[%emt 0:01:46]} 12. Be3 {[%emt 0:01:49]} d5 {[%emt 0:01:26]} 13. Bxa7 {[%emt 0:12:18]} Rxa7 {[%emt 0:00:27]} 14. exd5 {[%emt 0:01:21]} Bxd5 {[%emt 0:00:06]} 15. Bxd5 {[%emt 0:00:13]} Nxd5 {[%emt 0:04:24]} 16. d4 {[%emt 0:04:25]} exd4 {[%emt 0:03:04]} 17. Rxe8+ {[%emt 0:00:55]} Qxe8 {[%emt 0:00:05]} 18. Nxd4 {[%emt 0:00:05]} Ra8 {[%emt 0:01:51]} 19. Qb3 {[%emt 0:04:53]} Nxd4 {[%emt 0:02:47]} 20. Qxd5 {[%emt 0:00:13]} Nc6 {[%emt 0:00:23]} 21. Ne3 {[%emt 0:02:18]} Rd8 {[%emt 0:00:47]} 22. Qb3 {[%emt 0:00:10]} b6 {[%emt 0:00:52]} 23. Rd1 {[%emt 0:00:26]} Rxd1+ {[%emt 0:11:57]} 24. Qxd1 {[%emt 0:00:10]} Nd8 {[%emt 0:00:12]} 25. a5 {[%emt 0:10:49]} Ne6 {[%emt 0:07:08]} 26. Qd3 {[%emt 0:06:21]} bxa5 {[%emt 0:03:39]} 27. Qxa6 {[%emt 0:00:58]} Qa4 {[%emt 0:00:09]} 28. g3 {[%emt 0:01:02]} Qa1+ {[%emt 0:06:39]} 29. Kg2 {[%emt 0:00:12]} Qxb2 {[%emt 0:00:19]} 30. Qxa5 {[%emt 0:00:15]} Qb7+ {[%emt 0:05:10]} 1/2-1/2

[Event "Kragero Resort Chess A 2019"]
[Site "Kragero"]
[Date "2019.02.22"]
[Round "5.8"]
[White "Malakhatko, Vadim"]
[Black "Gharibyan, Mamikon"]
[Result "1/2-1/2"]
[ECO "D35"]
[WhiteElo "2525"]
[BlackElo "2318"]
[Annotator "ChessBase"]
[PlyCount "130"]
[EventDate "2019.02.20"]
[EventType "swiss"]
[EventCountry "NOR"]
[SourceTitle "playchess.com"]
[Source "ChessBase"]
[SourceQuality "1"]
[TimeControl "5400+30"]

1. Nf3 {[%emt 0:00:00]} d5 {[%emt 0:00:00]} 2. c4 {[%emt 0:02:55]} e6 {[%emt 0:00:52]} 3. d4 {[%emt 0:00:32]} Nf6 {[%emt 0:01:58]} 4. Nc3 {[%emt 0:00:53]} Bb4 {[%emt 0:04:17]} 5. cxd5 {[%emt 0:00:11]} exd5 {[%emt 0:00:04]} 6. Bg5 {[%emt 0:00:06]} h6 {[%emt 0:00:40]} 7. Bh4 {[%emt 0:00:06]} O-O {[%emt 0:00:19]} 8. e3 {[%emt 0:00:16]} Bf5 {[%emt 0:00:36]} 9. Bd3 {[%emt 0:03:43]} Bxd3 {[%emt 0:00:27]} 10. Qxd3 {[%emt 0:00:05]} c6 {[%emt 0:01:42]} 11. O-O {[%emt 0:00:39]} Nbd7 {[%emt 0:00:28]} 12. Rab1 {[%emt 0:00:08]} a5 {[%emt 0:03:12]} 13. Rfc1 {[%emt 0:02:31]} Qe7 {[%emt 0:07:08]} 14. Na4 {[%emt 0:09:19]} Bd6 {[%emt 0:04:21]} 15. Qb3 {[%emt 0:04:55]} Rab8 {[%emt 0:10:52]} 16. Qc2 {[%emt 0:00:21]} Rfe8 {[%emt 0:07:09]} 17. a3 {[%emt 0:00:24]} Ra8 {[%emt 0:05:28]} 18. Qb3 {[%emt 0:10:21]} Rab8 {[%emt 0:02:25]} 19. Nb6 {[%emt 0:00:29]} g5 {[%emt 0:03:47]} 20. Nxd7 {[%emt 0:01:39]} Qxd7 {[%emt 0:00:46]} 21. Bg3 {[%emt 0:00:07]} Bxg3 {[%emt 0:01:46]} 22. hxg3 {[%emt 0:00:05]} Ne4 {[%emt 0:00:18]} 23. Qc2 {[%emt 0:00:19]} Ra8 {[%emt 0:05:19]} 24. Ne5 {[%emt 0:05:13]} Qe7 {[%emt 0:01:44]} 25. f3 {[%emt 0:13:48]} Nd6 {[%emt 0:03:03]} 26. Re1 {[%emt 0:01:18]} f6 {[%emt 0:02:26]} 27. Ng4 {[%emt 0:01:45]} Kg7 {[%emt 0:05:30]} 28. a4 {[%emt 0:06:14]} Rad8 {[%emt 0:05:16]} 29. b3 {[%emt 0:00:11]} Qe6 {[%emt 0:03:25]} 30. Nf2 {[%emt 0:03:03]} Re7 {[%emt 0:06:51]} 31. Qc3 {[%emt 0:04:13]} Rde8 {[%emt 0:01:32]} 32. e4 {[%emt 0:02:17]} Qf7 {[%emt 0:01:57]} 33. e5 {[%emt 0:00:33]} Nf5 {[%emt 0:00:51]} 34. Ng4 {[%emt 0:01:22]} fxe5 {[%emt 0:00:15]} 35. dxe5 {[%emt 0:00:20]} Re6 {[%emt 0:02:43]} 36. Nf6 {[%emt 0:03:51]} R8e7 {[%emt 0:01:21]} 37. f4 {[%emt 0:00:14]} h5 {[%emt 0:02:51]} 38. Qd3 {[%emt 0:05:39]} Qg6 {[%emt 0:00:13]} 39. Nxh5+ {[%emt 0:00:22]} Qxh5 {[%emt 0:00:03]} 40. Qxf5 {[%emt 0:00:07]} Qg6 {[%emt 0:01:08]} 41. Qg4 {[%emt 0:04:02]} gxf4 {[%emt 0:01:28]} 42. Qxg6+ {[%emt 0:00:05]} Rxg6 {[%emt 0:00:36]} 43. gxf4 {[%emt 0:00:05]} Rf7 {[%emt 0:00:47]} 44. Rf1 {[%emt 0:01:06]} Rf5 {[%emt 0:02:51]} 45. Rf3 {[%emt 0:00:26]} Kf7 {[%emt 0:00:28]} 46. b4 {[%emt 0:02:34]} Ke6 {[%emt 0:00:47]} 47. bxa5 {[%emt 0:00:08]} Rg7 {[%emt 0:00:23]} 48. Rb4 {[%emt 0:02:17]} Rf8 {[%emt 0:00:13]} 49. Rc3 {[%emt 0:03:43]} Rd8 {[%emt 0:01:13]} 50. a6 {[%emt 0:03:05]} d4 {[%emt 0:00:21]} 51. Rc1 {[%emt 0:00:04]} bxa6 {[%emt 0:00:38]} 52. Rxc6+ {[%emt 0:00:05]} Kf5 {[%emt 0:00:22]} 53. Rd6 {[%emt 0:03:39]} Rdg8 {[%emt 0:00:13]} 54. Rbxd4 {[%emt 0:00:35]} Rxg2+ {[%emt 0:00:07]} 55. Kf1 {[%emt 0:00:05]} Ra2 {[%emt 0:01:02]} 56. Rd8 {[%emt 0:03:14]} Rg3 {[%emt 0:00:56]} 57. Rf8+ {[%emt 0:00:08]} Ke6 {[%emt 0:00:04]} 58. Rf6+ {[%emt 0:01:23]} Ke7 {[%emt 0:00:03]} 59. Rfd6 {[%emt 0:00:27]} Rh3 {[%emt 0:00:40]} 60. Rd2 {[%emt 0:00:12]} Rxa4 {[%emt 0:01:13]} 61. f5 {[%emt 0:00:33]} Rf3+ {[%emt 0:00:17]} 62. Rf2 {[%emt 0:00:55]} Rxf2+ {[%emt 0:00:05]} 63. Kxf2 {[%emt 0:00:03]} Rf4+ {[%emt 0:00:07]} 64. Ke3 {[%emt 0:00:02]} Rxf5 {[%emt 0:00:05]} 65. Ke4 {[%emt 0:00:06]} Rf1 {[%emt 0:00:23]} 1/2-1/2

[Event "Kragero Resort Chess A 2019"]
[Site "Kragero"]
[Date "2019.02.22"]
[Round "5.10"]
[White "Castellanos Rodriguez, Renier"]
[Black "Hobber, Anders"]
[Result "1/2-1/2"]
[ECO "D11"]
[WhiteElo "2505"]
[BlackElo "2312"]
[Annotator "ChessBase"]
[PlyCount "86"]
[EventDate "2019.02.20"]
[EventType "swiss"]
[EventCountry "NOR"]
[SourceTitle "playchess.com"]
[Source "ChessBase"]
[SourceQuality "1"]
[TimeControl "5400+30"]

1. c4 {[%emt 0:03:07]} c6 {[%emt 0:00:00]} 2. Nf3 {[%emt 0:00:25]} d5 {[%emt 0:00:00]} 3. d4 {[%emt 0:00:27]} Nf6 {[%emt 0:00:00]} 4. e3 {[%emt 0:00:06]} a6 {[%emt 0:00:48]} 5. Nbd2 {[%emt 0:01:31]} Bf5 {[%emt 0:01:23]} 6. Nh4 {[%emt 0:00:30]} Be4 {[%emt 0:12:18]} 7. Be2 {[%emt 0:05:34]} e6 {[%emt 0:02:59]} 8. O-O {[%emt 0:00:49]} Nbd7 {[%emt 0:01:52]} 9. g3 {[%emt 0:02:13]} Bd6 {[%emt 0:02:00]} 10. Nxe4 {[%emt 0:08:27]} Nxe4 {[%emt 0:07:36]} 11. Bd3 {[%emt 0:04:49]} Nef6 {[%emt 0:06:19]} 12. c5 {[%emt 0:05:25]} Be7 {[%emt 0:03:10]} 13. b4 {[%emt 0:01:33]} e5 {[%emt 0:03:39]} 14. Bb2 {[%emt 0:07:48]} exd4 {[%emt 0:08:51]} 15. Nf5 {[%emt 0:03:24]} O-O {[%emt 0:00:48]} 16. Bxd4 {[%emt 0:07:46]} Re8 {[%emt 0:00:50]} 17. Qf3 {[%emt 0:01:13]} Bf8 {[%emt 0:01:29]} 18. Qf4 {[%emt 0:01:55]} Nh5 {[%emt 0:08:34]} 19. Qh4 {[%emt 0:07:23]} Qxh4 {[%emt 0:00:46]} 20. Nxh4 {[%emt 0:00:05]} g6 {[%emt 0:03:32]} 21. Nf3 {[%emt 0:00:32]} Bg7 {[%emt 0:02:44]} 22. a4 {[%emt 0:02:02]} Bf8 {[%emt 0:05:48]} 23. Rfc1 {[%emt 0:02:01]} Ng7 {[%emt 0:00:28]} 24. Nd2 {[%emt 0:04:27]} Ne6 {[%emt 0:03:58]} 25. Nb3 {[%emt 0:00:16]} Nxd4 {[%emt 0:01:09]} 26. exd4 {[%emt 0:00:07]} Bg7 {[%emt 0:00:21]} 27. Re1 {[%emt 0:08:11]} Nf8 {[%emt 0:04:50]} 28. Rxe8 {[%emt 0:02:50]} Rxe8 {[%emt 0:00:03]} 29. Rd1 {[%emt 0:00:15]} Ne6 {[%emt 0:01:19]} 30. Bf1 {[%emt 0:00:11]} f5 {[%emt 0:00:57]} 31. f4 {[%emt 0:01:32]} Kf7 {[%emt 0:01:32]} 32. Kf2 {[%emt 0:01:09]} g5 {[%emt 0:04:05]} 33. Bh3 {[%emt 0:04:31]} g4 {[%emt 0:04:21]} 34. Bf1 {[%emt 0:02:02]} h5 {[%emt 0:00:25]} 35. Rd3 {[%emt 0:03:57]} Bf6 {[%emt 0:01:03]} 36. Be2 {[%emt 0:00:49]} h4 {[%emt 0:01:04]} 37. Rd2 {[%emt 0:02:09]} Kg6 {[%emt 0:01:34]} 38. Bf1 {[%emt 0:02:13]} Rh8 {[%emt 0:01:17]} 39. Bg2 {[%emt 0:01:21]} Kf7 {[%emt 0:01:22]} 40. Ke3 {[%emt 0:00:17]} Re8 {[%emt 0:02:35]} 41. Kf2 {[%emt 0:01:38]} Rh8 {[%emt 0:00:14]} 42. Ke3 {[%emt 0:00:05]} Re8 {[%emt 0:00:02]} 43. Kf2 {[%emt 0:00:07]} Rh8 {[%emt 0:00:20]} 1/2-1/2

[Event "Kragero Resort Chess A 2019"]
[Site "Kragero"]
[Date "2019.02.22"]
[Round "5.11"]
[White "Mikalsen, Erlend"]
[Black "Khachatryan, Vahagn"]
[Result "0-1"]
[ECO "B19"]
[WhiteElo "2406"]
[BlackElo "2274"]
[Annotator "NA"]
[PlyCount "86"]
[EventDate "2019.02.20"]
[EventType "swiss"]
[EventCountry "NOR"]
[SourceTitle "playchess.com"]
[Source "ChessBase"]
[SourceQuality "1"]
[TimeControl "5400+30"]

1. e4 {[%emt 0:00:00]} c6 {[%emt 0:01:03]} 2. d4 {[%emt 0:00:00]} d5 {[%emt 0:00:05]} 3. Nc3 {[%emt 0:00:00]} dxe4 {[%emt 0:00:06]} 4. Nxe4 {[%emt 0:00:00]} Bf5 {[%emt 0:00:24]} 5. Ng3 {[%emt 0:00:00]} Bg6 {[%emt 0:00:06]} 6. h4 {[%emt 0:00:00]} h6 {[%emt 0:00:06]} 7. Nf3 {[%emt 0:00:00]} e6 {[%emt 0:00:10]} 8. Ne5 {[%emt 0:00:00]} Bh7 {[%emt 0:00:05]} 9. Bd3 {[%emt 0:00:02]} Bxd3 {[%emt 0:00:24]} 10. Qxd3 {[%emt 0:00:04]} Nd7 {[%emt 0:00:07]} 11. f4 {[%emt 0:00:07]} Ngf6 {[%emt 0:02:46]} 12. Be3 {[%emt 0:03:37]} Bb4+ {[%emt 0:09:04]} 13. c3 {[%emt 0:00:06]} Be7 {[%emt 0:00:03]} 14. O-O-O {[%emt 0:00:46]} Nxe5 {[%emt 0:05:55]} 15. fxe5 {[%emt 0:00:42]} Ng4 {[%emt 0:00:07]} 16. Ne4 {[%emt 0:02:18]} Nxe3 {[%emt 0:03:39]} 17. Qxe3 {[%emt 0:00:07]} Qd5 {[%emt 0:02:44]} 18. Kb1 {[%emt 0:00:56]} O-O-O {[%emt 0:00:06]} 19. Qe2 {[%emt 0:15:16]} c5 {[%emt 0:03:50]} 20. dxc5 {[%emt 0:04:17]} Qxe5 {[%emt 0:01:18]} 21. Qc4 {[%emt 0:00:08]} Rxd1+ {[%emt 0:09:09]} 22. Rxd1 {[%emt 0:00:05]} Rd8 {[%emt 0:00:09]} 23. Rxd8+ {[%emt 0:02:09]} Kxd8 {[%emt 0:00:14]} 24. b4 {[%emt 0:08:50]} Qd5 {[%emt 0:03:37]} 25. Qxd5+ {[%emt 0:01:18]} exd5 {[%emt 0:00:02]} 26. Ng3 {[%emt 0:00:22]} Bxh4 {[%emt 0:00:32]} 27. Nf5 {[%emt 0:00:03]} Bf6 {[%emt 0:00:20]} 28. Kc2 {[%emt 0:00:02]} Be5 {[%emt 0:03:56]} 29. Ne3 {[%emt 0:00:13]} Kd7 {[%emt 0:05:42]} 30. Nxd5 {[%emt 0:00:10]} f5 {[%emt 0:01:00]} 31. Kd3 {[%emt 0:02:16]} g5 {[%emt 0:00:44]} 32. b5 {[%emt 0:02:23]} h5 {[%emt 0:06:10]} 33. Nb4 {[%emt 0:00:37]} h4 {[%emt 0:07:44]} 34. c6+ {[%emt 0:00:03]} Kc7 {[%emt 0:07:12]} 35. c4 {[%emt 0:09:32]} g4 {[%emt 0:07:14]} 36. Ke2 {[%emt 0:02:34]} b6 {[%emt 0:06:05]} 37. Nd5+ {[%emt 0:02:04]} Kd6 {[%emt 0:02:11]} 38. a4 {[%emt 0:01:42]} f4 {[%emt 0:02:54]} 39. Kf1 {[%emt 0:08:47]} h3 {[%emt 0:04:08]} 40. gxh3 {[%emt 0:00:05]} gxh3 {[%emt 0:00:03]} 41. c7 {[%emt 0:05:44]} Kd7 {[%emt 0:00:10]} 42. c5 {[%emt 0:00:04]} bxc5 {[%emt 0:00:56]} 43. b6 {[%emt 0:00:26]} axb6 {[%emt 0:01:59]} 0-1

[Event "Kragero Resort Chess A 2019"]
[Site "Kragero"]
[Date "2019.02.22"]
[Round "5.12"]
[White "Osmak, Iulija"]
[Black "Ranaldi, Lucas"]
[Result "1/2-1/2"]
[ECO "B12"]
[WhiteElo "2394"]
[BlackElo "2229"]
[Annotator "ChessBase"]
[PlyCount "136"]
[EventDate "2019.02.20"]
[EventType "swiss"]
[EventCountry "NOR"]
[SourceTitle "playchess.com"]
[Source "ChessBase"]
[SourceQuality "1"]
[TimeControl "5400+30"]

1. e4 {[%emt 0:00:39]} c6 {[%emt 0:00:00]} 2. d4 {[%emt 0:00:18]} d5 {[%emt 0:00:00]} 3. e5 {[%emt 0:00:04]} Bf5 {[%emt 0:00:00]} 4. Nf3 {[%emt 0:00:06]} e6 {[%emt 0:00:04]} 5. Be2 {[%emt 0:00:03]} c5 {[%emt 0:00:06]} 6. c3 {[%emt 0:00:38]} Nc6 {[%emt 0:00:08]} 7. O-O {[%emt 0:00:11]} cxd4 {[%emt 0:04:04]} 8. Nxd4 {[%emt 0:00:07]} Nge7 {[%emt 0:05:22]} 9. Nxf5 {[%emt 0:03:19]} Nxf5 {[%emt 0:00:10]} 10. Bd3 {[%emt 0:00:16]} g6 {[%emt 0:04:00]} 11. Re1 {[%emt 0:02:24]} h5 {[%emt 0:09:07]} 12. Nd2 {[%emt 0:03:19]} Be7 {[%emt 0:03:12]} 13. Nf3 {[%emt 0:06:35]} Nh4 {[%emt 0:03:21]} 14. Nxh4 {[%emt 0:12:30]} Bxh4 {[%emt 0:00:03]} 15. Qe2 {[%emt 0:00:18]} Rc8 {[%emt 0:12:47]} 16. Bd2 {[%emt 0:02:41]} Na5 {[%emt 0:05:52]} 17. Rad1 {[%emt 0:02:44]} Kf8 {[%emt 0:02:28]} 18. Qe3 {[%emt 0:06:56]} a6 {[%emt 0:03:31]} 19. Qf4 {[%emt 0:00:58]} Kg7 {[%emt 0:01:15]} 20. Bc1 {[%emt 0:01:35]} Be7 {[%emt 0:01:32]} 21. Bf1 {[%emt 0:03:01]} h4 {[%emt 0:02:12]} 22. h3 {[%emt 0:09:40]} b5 {[%emt 0:03:18]} 23. Rd3 {[%emt 0:08:35]} Rh5 {[%emt 0:01:46]} 24. Rf3 {[%emt 0:01:33]} Qe8 {[%emt 0:01:12]} 25. b3 {[%emt 0:08:18]} Kg8 {[%emt 0:06:36]} 26. Qg4 {[%emt 0:03:53]} Nc6 {[%emt 0:02:06]} 27. Bf4 {[%emt 0:00:13]} Qd8 {[%emt 0:04:26]} 28. Bd3 {[%emt 0:01:40]} Kg7 {[%emt 0:02:18]} 29. Bh2 {[%emt 0:05:04]} Qe8 {[%emt 0:06:33]} 30. Bb1 {[%emt 0:02:43]} Bg5 {[%emt 0:00:38]} 31. Rd3 {[%emt 0:01:09]} Ne7 {[%emt 0:04:51]} 32. Qe2 {[%emt 0:05:55]} Rc6 {[%emt 0:03:13]} 33. Rf3 {[%emt 0:06:00]} Qc8 {[%emt 0:01:08]} 34. Qb2 {[%emt 0:00:28]} Bh6 {[%emt 0:00:55]} 35. Rd1 {[%emt 0:01:09]} Nf5 {[%emt 0:01:00]} 36. Kh1 {[%emt 0:01:34]} Kg8 {[%emt 0:03:29]} 37. Re1 {[%emt 0:01:09]} a5 {[%emt 0:01:09]} 38. Rg1 {[%emt 0:00:42]} b4 {[%emt 0:00:55]} 39. cxb4 {[%emt 0:00:09]} axb4 {[%emt 0:00:02]} 40. Bf4 {[%emt 0:00:21]} Rc3 {[%emt 0:01:10]} 41. Bxh6 {[%emt 0:00:21]} Rxf3 {[%emt 0:00:28]} 42. gxf3 {[%emt 0:00:05]} Nxh6 {[%emt 0:00:20]} 43. Rc1 {[%emt 0:00:42]} Qa6 {[%emt 0:01:38]} 44. Qd2 {[%emt 0:00:49]} Nf5 {[%emt 0:00:29]} 45. Qxb4 {[%emt 0:00:40]} Qe2 {[%emt 0:00:01]} 46. Qf4 {[%emt 0:00:53]} Qxf2 {[%emt 0:00:32]} 47. Bxf5 {[%emt 0:00:30]} Rxf5 {[%emt 0:00:15]} 48. Qh6 {[%emt 0:00:31]} Qxf3+ {[%emt 0:00:17]} 49. Kh2 {[%emt 0:00:14]} Qg3+ {[%emt 0:00:23]} 50. Kh1 {[%emt 0:00:04]} Qxh3+ {[%emt 0:00:19]} 51. Kg1 {[%emt 0:00:02]} Qg4+ {[%emt 0:01:07]} 52. Kh1 {[%emt 0:00:04]} Qe4+ {[%emt 0:01:10]} 53. Kg1 {[%emt 0:00:04]} Qd4+ {[%emt 0:01:16]} 54. Kh1 {[%emt 0:00:04]} Qe4+ {[%emt 0:00:14]} 55. Kg1 {[%emt 0:00:02]} Qg4+ {[%emt 0:00:08]} 56. Kh1 {[%emt 0:00:06]} Qh3+ {[%emt 0:00:54]} 57. Kg1 {[%emt 0:00:05]} Qg3+ {[%emt 0:01:32]} 58. Kh1 {[%emt 0:00:04]} Qf3+ {[%emt 0:00:13]} 59. Kg1 {[%emt 0:00:24]} Qf2+ {[%emt 0:00:04]} 60. Kh1 {[%emt 0:00:04]} Qf3+ {[%emt 0:00:57]} 61. Kg1 {[%emt 0:00:08]} Qg4+ {[%emt 0:01:20]} 62. Kh1 {[%emt 0:00:04]} Qe4+ {[%emt 0:00:44]} 63. Kg1 {[%emt 0:00:06]} Qd4+ {[%emt 0:00:23]} 64. Kh1 {[%emt 0:00:07]} Qe4+ {[%emt 0:00:13]} 65. Kg1 {[%emt 0:00:06]} Qg4+ {[%emt 0:00:24]} 66. Kh1 {[%emt 0:00:07]} Qf3+ {[%emt 0:00:20]} 67. Kg1 {[%emt 0:00:13]} Qg3+ {[%emt 0:00:56]} 68. Kh1 {[%emt 0:00:04]} Qh3+ {[%emt 0:00:44]} 1/2-1/2

[Event "Kragero Resort Chess A 2019"]
[Site "Kragero"]
[Date "2019.02.22"]
[Round "5.13"]
[White "Kaasen, Tor Fredrik"]
[Black "Birkisson, Bardur Orn"]
[Result "1-0"]
[ECO "C54"]
[WhiteElo "2387"]
[BlackElo "2233"]
[Annotator "NA"]
[PlyCount "73"]
[EventDate "2019.02.20"]
[EventType "swiss"]
[EventCountry "NOR"]
[SourceTitle "playchess.com"]
[Source "ChessBase"]
[SourceQuality "1"]
[TimeControl "5400+30"]

1. e4 {[%emt 0:00:00]} e5 {[%emt 0:01:07]} 2. Nf3 {[%emt 0:00:00]} Nc6 {[%emt 0:00:15]} 3. Bc4 {[%emt 0:00:00]} Bc5 {[%emt 0:01:19]} 4. O-O {[%emt 0:00:07]} Nf6 {[%emt 0:00:49]} 5. d3 {[%emt 0:00:13]} d6 {[%emt 0:02:46]} 6. c3 {[%emt 0:01:08]} a6 {[%emt 0:01:01]} 7. Bb3 {[%emt 0:00:28]} Ba7 {[%emt 0:00:16]} 8. Nbd2 {[%emt 0:00:29]} O-O {[%emt 0:00:22]} 9. h3 {[%emt 0:00:47]} Ne7 {[%emt 0:03:38]} 10. Re1 {[%emt 0:00:19]} Ng6 {[%emt 0:01:28]} 11. Nf1 {[%emt 0:01:59]} h6 {[%emt 0:03:12]} 12. Ng3 {[%emt 0:00:45]} Re8 {[%emt 0:03:41]} 13. d4 {[%emt 0:01:26]} c6 {[%emt 0:01:28]} 14. Bc2 {[%emt 0:01:27]} Be6 {[%emt 0:05:46]} 15. Be3 {[%emt 0:00:57]} Nh7 {[%emt 0:12:08]} 16. Qd2 {[%emt 0:02:17]} Nh4 {[%emt 0:06:29]} 17. Nh2 {[%emt 0:03:45]} Qf6 {[%emt 0:03:38]} 18. f4 {[%emt 0:04:01]} exf4 {[%emt 0:06:33]} 19. Bxf4 {[%emt 0:01:44]} Rad8 {[%emt 0:04:27]} 20. e5 {[%emt 0:07:13]} dxe5 {[%emt 0:00:32]} 21. Bxe5 {[%emt 0:00:36]} Qg5 {[%emt 0:01:48]} 22. Bf4 {[%emt 0:04:36]} Qe7 {[%emt 0:03:46]} 23. Bxh6 {[%emt 0:01:35]} gxh6 {[%emt 0:01:12]} 24. Qxh6 {[%emt 0:00:57]} Ng6 {[%emt 0:02:21]} 25. Bxg6 {[%emt 0:01:57]} fxg6 {[%emt 0:00:11]} 26. Qxg6+ {[%emt 0:00:05]} Kh8 {[%emt 0:00:18]} 27. Nh5 {[%emt 0:00:04]} Rd7 {[%emt 0:03:13]} 28. Ng4 {[%emt 0:07:18]} Qf7 {[%emt 0:04:52]} 29. Ne5 {[%emt 0:05:14]} Qxg6 {[%emt 0:01:17]} 30. Nxg6+ {[%emt 0:00:12]} Kg8 {[%emt 0:00:09]} 31. Ne5 {[%emt 0:00:16]} Rdd8 {[%emt 0:01:26]} 32. Re3 {[%emt 0:02:27]} Bf7 {[%emt 0:02:58]} 33. Rg3+ {[%emt 0:00:40]} Kf8 {[%emt 0:00:34]} 34. Nxf7 {[%emt 0:00:12]} Kxf7 {[%emt 0:03:36]} 35. Rg7+ {[%emt 0:00:11]} Kf8 {[%emt 0:00:15]} 36. Rf1+ {[%emt 0:00:08]} Nf6 {[%emt 0:00:05]} 37. Rxf6# {[%emt 0:00:04]} 1-0